[Event "Kezmarok Chess Open 2022"]
[Site "Kezmarok"]
[Date "2022.09.30"]
[Round "8.13"]
[White "Skapikova, Lubica"]
[Black "Fizer, Marek"]
[Result "0-1"]
[ECO "B30"]
[WhiteElo "1823"]
[BlackElo "1963"]
[Annotator "TA"]
[PlyCount "84"]
[EventDate "2022.09.24"]
[EventType "swiss"]
[EventCountry "SVK"]
[SourceTitle "playchess.com"]
[Source "ChessBase"]
[SourceQuality "1"]
[TimeControl "40/5400+30:1800+30"]

{[%evp 16,84,0,0,2,-81,-50,-75,-36,-52,-61,-50,-48,-59,-41,-37,0,-7,-7,-87,-80,-160,-29,-48,-33,-38,-52,-41,-25,-76,-75,-171,-185,-181,-104,-112,-118,-112,-92,-119,-108,-102,-80,-100,-107,-130,-135,-295,-291,-302,-176,-175,-36,-231,-81,-86,0,-1020,-1012,-2943,-2644,-5273,-4532,-2110,-525,-523,-500,-1341,-1317,-29997,-29998]} 1. e4 {[%emt 0:00:03]} c5 {[%emt 0:00:04]} 2. Nf3 {[%emt 0:00:03]} Nc6 {[%emt 0:00:07]} 3. g3 {[%emt 0:00:04]} g6 {[%emt 0:00:14]} 4. Bg2 {[%emt 0:00:04]} Bg7 {[%emt 0:00:10]} 5. O-O {[%emt 0:00:08]} d6 {[%emt 0:00:21]} 6. d3 {[%emt 0:00:04]} e5 {[%emt 0:00:18]} 7. Nc3 {[%emt 0:01:29]} Nge7 {[%emt 0:00:16]} 8. Nh4 {[%emt 0:01:53]} O-O {[%emt 0:10:51]} 9. f4 {[%emt 0:01:41]} Nd4 {[%emt 0:01:47] Inhibits f5. B25: Closed Sicilian: 3 g3, lines without early Be3.} 10. Ne2 {[%emt 0:04:51]} (10. f5 $11 gxf5 11. exf5 Nexf5 12. Nxf5 Bxf5 13. Bxb7) 10... Bg4 {[%emt 0:01:21]} 11. Nf3 {[%emt 0:00:24]} Qd7 {[%emt 0:11:04] Black is much more active. Black is better.} 12. c3 {[%emt 0:02:51]} Nxf3+ {[%emt 0:00:46]} 13. Bxf3 {[%emt 0:00:05]} Bxf3 {[%emt 0:01:58]} 14. Rxf3 {[%emt 0:00:05] [#]} b5 $146 {[%emt 0:02:34]} (14... d5 $5 {[%cal Rd5e4]} 15. Rf1 Rad8 $15) ({Predecessor:} 14... d5 15. Qc2 Rad8 16. fxe5 dxe4 17. dxe4 Nc6 18. Bf4 Bxe5 19. Bh6 Bg7 20. Bxg7 Kxg7 {0-1 (60) Pujante Martinez,R (1813)-Aguilera Lopez,A (2223) Salobrena 2019}) 15. Be3 {[%emt 0:01:07]} Qc6 {[%emt 0:01:15]} 16. fxe5 {[%emt 0:05:01]} dxe5 {[%emt 0:00:17][%cal Oe7f5]} 17. Qc2 {[%emt 0:03:50] [#]} (17. b4 $11 {remains equal.} cxb4 18. cxb4) 17... Nf5 $1 $17 {[%emt 0:04:50]} 18. Raf1 {[%emt 0:13:30]} (18. Bf2 $142) (18. a4 Nxe3) 18... Nd6 {[%emt 0:02:38]} (18... Nxe3 $17 19. Rxe3 c4) 19. g4 $1 $11 {[%emt 0:02:23]} c4 {[%emt 0:02:02] Strongly threatening ...cxd3.} 20. Ng3 {[%emt 0:00:08]} cxd3 {[%emt 0:01:21]} 21. Qxd3 {[%emt 0:00:05]} Nc4 {[%emt 0:06:54]} 22. b3 {[%emt 0:00:26]} (22. Bc1 $11 {keeps the balance.}) 22... Rad8 {[%emt 0:02:22]} 23. Qc2 {[%emt 0:01:05]} (23. Qe2 $17 Nxe3 24. Qxe3) 23... Nxe3 $19 {[%emt 0:02:55]} 24. Rxe3 {[%emt 0:00:24]} Qd7 {[%emt 0:07:49]} (24... Qc5 $19 25. Qf2 Bh6) 25. h3 $17 {[%emt 0:00:48]} Bh6 {[%emt 0:07:40]} 26. Ref3 {[%emt 0:05:59]} Qd2 {[%emt 0:01:47]} 27. R1f2 {[%emt 0:00:41]} Qe1+ {[%emt 0:01:52]} 28. Nf1 {[%emt 0:04:41]} Bf4 {[%emt 0:04:31]} 29. Qe2 {[%emt 0:01:36]} Rd1 {[%emt 0:06:15]} 30. Kg2 {[%emt 0:05:24]} Rfd8 {[%emt 0:03:20]} 31. Qxb5 $2 {[%emt 0:06:22]} (31. h4 $17 {keeps fighting.}) 31... Qxe4 $19 {[%emt 0:00:51]} 32. Ng3 {[%emt 0:08:06]} Qb1 {[%emt 0:04:00]} ({Inferior is} 32... Qe1 33. Qf1 $17) (32... Qa8 $142 {...Re1 is the strong threat.} 33. Qe2 Bxg3 34. Kxg3 e4) 33. Nf1 {[%emt 0:01:08]} g5 {[%emt 0:03:28]} (33... Re1 $19 {aiming for ...Qe4.} 34. Qb7 Kg7) 34. a4 $2 {[%emt 0:07:05]} ({White has to play} 34. Rxf4 $1 $15 gxf4 35. Qxe5) 34... Qg6 {[%emt 0:04:36]} (34... Re1 $19 {has better winning chances.} 35. c4 Rdd1) 35. Ne3 $17 {[%emt 0:01:25]} Re1 $40 {[%emt 0:03:45][%mdl 128] Black attacks.} (35... R1d7 $17 {And now ...e4 would win.} 36. Nf5 Qe6) 36. Nd5 $2 {[%emt 0:03:16][%mdl 8192] [#]} (36. Nf5 $11 Kh8 37. Rd3 Rxd3 38. Qxd3 Qc6+ 39. Rf3) 36... Qb1 $1 $19 {[%emt 0:00:52][%csl Gb1][%cal Re1g1]} 37. Nf6+ {[%emt 0:14:25]} Kg7 {[%emt 0:00:30][%csl Gb1][%cal Re1g1]} 38. Nh5+ {[%emt 0:00:29]} Kh8 {[%emt 0:00:23][%csl Gb1][%cal Re1g1]} 39. Rf1 {[%emt 0:01:19] Against Rg1+} Qc2+ {[%emt 0:00:31]} (39... Rd2+ $142 40. Kg1 Rxf1+ 41. Qxf1 Rd1 42. Nxf4 gxf4 43. Qxd1 Qxd1+ 44. Rf1 Qxb3) 40. R3f2 {[%emt 0:00:10] [#]} Qe4+ {[%emt 0:00:39]} ({Don't take} 40... Qxc3 41. Qa6 e4 42. Rxe1 $18) 41. Rf3 {[%emt 0:35:49]} (41. Kg1 $142 Rxf1+ 42. Qxf1) 41... Re2+ {[%emt 0:31:11]} ({And not} 41... Rd2+ 42. R1f2 Rd8 43. Qa6 $15) 42. Kh1 {[%emt 0:00:00] [#]} Qxf3+ $3 {[%emt 0:00:00][%mdl 512] Weighted Error Value: White=0.89/Black=0.49} 0-1

[Event "Kezmarok Chess Open 2022"]
[Site "Kezmarok"]
[Date "2022.09.30"]
[Round "8.14"]
[White "Straka, Simon"]
[Black "Hagara, Eduard"]
[Result "1-0"]
[ECO "A40"]
[WhiteElo "1732"]
[BlackElo "1734"]
[Annotator "NA RC COMBH"]
[PlyCount "83"]
[EventDate "2022.09.24"]
[EventType "swiss"]
[EventCountry "SVK"]
[SourceTitle "playchess.com"]
[Source "ChessBase"]
[SourceQuality "1"]
[TimeControl "40/5400+30:1800+30"]

1. d4 {[%emt 0:00:04]} e5 {[%emt 0:02:06]} 2. dxe5 {[%emt 0:00:09]} Nc6 {[%emt 0:00:12]} 3. Nf3 {[%emt 0:00:26]} Qe7 {[%emt 0:00:12]} 4. Bf4 {[%emt 0:00:18]} Qb4+ {[%emt 0:00:13]} 5. Bd2 {[%emt 0:00:34]} Qxb2 {[%emt 0:00:12]} 6. Nc3 {[%emt 0:00:14]} Bb4 {[%emt 0:01:28]} 7. Rb1 {[%emt 0:00:37]} Qa3 {[%emt 0:00:16]} 8. Nd5 {[%emt 0:01:07]} Bxd2+ {[%emt 0:03:17]} 9. Qxd2 {[%emt 0:00:00]} Qxa2 {[%emt 0:01:21]} 10. Rd1 {[%emt 0:12:40]} Kf8 {[%emt 0:10:34]} 11. Nxc7 {[%emt 0:13:53]} Rb8 {[%emt 0:01:07]} 12. e4 {[%emt 0:15:58]} Qa5 {[%emt 0:05:18]} 13. Qxa5 {[%emt 0:05:34]} Nxa5 {[%emt 0:04:16]} 14. Nb5 {[%emt 0:02:38]} a6 {[%emt 0:03:08]} 15. Nd6 {[%emt 0:00:32]} g6 {[%emt 0:03:05]} 16. Rd5 {[%emt 0:11:48]} b5 {[%emt 0:03:00]} 17. Be2 {[%emt 0:10:07]} Ne7 {[%emt 0:02:16]} 18. Rd1 {[%emt 0:00:38]} h6 {[%emt 0:01:40]} 19. O-O {[%emt 0:07:27]} Kg7 {[%emt 0:01:30]} 20. Nxc8 {[%emt 0:00:54]} Rhxc8 {[%emt 0:11:57]} 21. Rxd7 {[%emt 0:00:45]} Nac6 {[%emt 0:00:57]} 22. Rb1 {[%emt 0:03:18]} Rd8 {[%emt 0:02:12]} 23. Rd6 {[%emt 0:05:22]} Ra8 {[%emt 0:05:41]} 24. Ra1 {[%emt 0:01:02]} Rdc8 {[%emt 0:02:35]} 25. Rd7 {[%emt 0:02:27]} Re8 {[%emt 0:01:21]} 26. Rb7 {[%emt 0:01:22]} Nc8 {[%emt 0:02:13]} 27. Bxb5 {[%emt 0:01:41]} N8e7 {[%emt 0:01:36]} 28. Rxa6 {[%emt 0:01:56]} Rab8 {[%emt 0:04:10]} 29. Bxc6 {[%emt 0:00:45]} Nxc6 {[%emt 0:00:22]} 30. Rxb8 {[%emt 0:00:13]} Rxb8 {[%emt 0:00:13]} 31. Ra1 {[%emt 0:00:38]} Rb2 {[%emt 0:00:17]} 32. Rc1 {[%emt 0:00:39]} Nb4 {[%emt 0:00:02]} 33. Ne1 {[%emt 0:00:28]} Na2 {[%emt 0:00:57]} 34. Ra1 {[%emt 0:00:39]} Nb4 {[%emt 0:00:18]} 35. Nd3 {[%emt 0:00:31]} Nxd3 {[%emt 0:00:34]} 36. cxd3 {[%emt 0:00:04]} Rd2 {[%emt 0:00:01]} 37. f3 {[%emt 0:00:46]} Rxd3 {[%emt 0:00:21]} 38. Kf2 {[%emt 0:00:13]} g5 {[%emt 0:00:34]} 39. Ra7 {[%emt 0:00:41]} Kg6 {[%emt 0:00:21]} 40. Ra6+ {[%emt 0:00:09]} Kg7 {[%emt 0:00:31]} 41. e6 {[%emt 0:30:17]} h5 {[%emt 0:32:45]} 42. e7 {[%emt 0:00:52]} 1-0

[Event "Kezmarok Chess Open 2022"]
[Site "Kezmarok"]
[Date "2022.09.30"]
[Round "8.15"]
[White "Belus, Benjamin"]
[Black "Kapolkova, Greta"]
[Result "1/2-1/2"]
[ECO "A20"]
[WhiteElo "1932"]
[BlackElo "1723"]
[Annotator "TA"]
[PlyCount "72"]
[EventDate "2022.09.24"]
[EventType "swiss"]
[EventCountry "SVK"]
[SourceTitle "playchess.com"]
[Source "ChessBase"]
[SourceQuality "1"]
[TimeControl "40/5400+30:1800+30"]

{[%evp 9,72,0,4,-40,-2,-56,-8,-37,-27,-54,-35,-50,-33,-39,-31,-37,-24,-30,-23,-47,-44,-54,-53,-66,-51,-129,-126,-122,-113,-134,-108,-153,-45,-51,34,27,115,33,72,-39,-40,-41,-37,-84,-88,-103,-90,-130,-125,-129,-131,-143,-95,-87,-80,-97,-29,-105,-63,-63,-63,-70,-43,-95,-45]} 1. c4 {[%emt 0:23:58]} e5 {[%emt 0:00:08]} 2. g3 {[%emt 0:00:01]} c6 {[%emt 0:00:06]} 3. Bg2 {[%emt 0:00:02]} d5 {[%emt 0:00:13]} 4. cxd5 {[%emt 0:00:02]} cxd5 {[%emt 0:00:08]} 5. d4 {[%emt 0:01:50]} e4 {[%emt 0:00:18]} 6. e3 {[%emt 0:00:26] A20: English Opening: 1...e5.} Nf6 {[%emt 0:05:32]} 7. Ne2 {[%emt 0:00:03] [#]} ({Better is} 7. f3 $11) 7... Na6 $146 {[%emt 0:04:59]} (7... h5 $15 {might be stronger.}) ({Predecessor:} 7... Bd6 8. Nbc3 O-O 9. h3 Nc6 10. O-O h5 11. Nf4 Bxf4 12. gxf4 Bf5 13. Kh2 Rc8 {1-0 (34) Sihite,C (2252)-Khabinets,I (1980) Chess.com INT 2022}) 8. a3 {[%emt 0:00:52] The position is equal.} h5 {[%emt 0:01:05]} 9. h4 {[%emt 0:00:27]} Nc7 {[%emt 0:03:38]} 10. Nbc3 {[%emt 0:00:04]} Bg4 {[%emt 0:03:27]} 11. Qa4+ {[%emt 0:00:45]} Bd7 {[%emt 0:10:50]} 12. Qb3 {[%emt 0:00:15]} Bc6 {[%emt 0:03:01]} 13. Bd2 {[%emt 0:01:16]} Bd6 {[%emt 0:02:56]} 14. Rc1 {[%emt 0:05:54]} Ng4 {[%emt 0:02:29]} 15. f3 {[%emt 0:09:03]} exf3 {[%emt 0:03:50]} 16. Bxf3 {[%emt 0:01:10]} O-O {[%emt 0:09:08]} 17. Nf4 {[%emt 0:01:32]} (17. e4 $15) 17... Bxf4 $17 {[%emt 0:02:36]} 18. gxf4 {[%emt 0:00:32]} Qd7 {[%emt 0:06:38]} 19. Ne2 {[%emt 0:02:14]} Rfe8 {[%emt 0:05:09]} 20. Bxg4 {[%emt 0:04:05]} Qxg4 {[%emt 0:00:21]} (20... hxg4 $17 21. h5 Qe6) 21. Kf2 $15 {[%emt 0:00:08]} g6 {[%emt 0:08:16]} ({Much weaker is} 21... Bb5 22. Ng3 Rec8 23. Rxc7 Rxc7 24. Qxb5 $11) (21... Nb5 $15 22. Qd1 Nd6) 22. Rcg1 $14 {[%emt 0:00:39]} Qe6 {[%emt 0:01:57]} (22... Qd7 $11 {remains equal.}) 23. Ng3 {[%emt 0:00:15]} (23. Rg5 $1 $16) 23... Kh8 {[%emt 0:01:42] [#]} 24. Qc2 {[%emt 0:01:08]} (24. Nxh5 $1 $16 {[%cal Og1g5] Hoping for Rg5!} Nb5 25. Rg5) 24... f5 $15 {[%emt 0:01:18]} 25. Nf1 {[%emt 0:01:52]} Nb5 {[%emt 0:01:22][%cal Bc7b5,Bb5d6,Bd6e4][%mdl 32]} 26. Rg2 {[%emt 0:03:14]} (26. Bb4 $15) 26... Nd6 $17 {[%emt 0:01:14]} 27. Rhg1 {[%emt 0:05:23]} Ne4+ {[%emt 0:00:25]} 28. Kf3 {[%emt 0:00:10] [#]} Rg8 {[%emt 0:01:43]} 29. Ng3 {[%emt 0:05:11][%cal Bf1g3,Bg3h1,Bh1f2,Bf2h3,Bh3g5][%mdl 32]} Nf6 {[%emt 0:04:10]} 30. Nh1 {[%emt 0:03:53]} Kh7 {[%emt 0:01:02]} (30... Ng4 $142 31. Nf2 Rac8) 31. Nf2 {[%emt 0:03:33]} Rac8 {[%emt 0:03:26]} 32. Qd1 {[%emt 0:03:29]} Qd7 {[%emt 0:03:52]} (32... Bd7 $17) 33. Bc3 {[%emt 0:03:30]} (33. Nd3 $11) 33... Qe7 {[%emt 0:01:03] Strongly threatening ...Ng4.} 34. Nh3 {[%emt 0:03:48]} Ng4 {[%emt 0:03:43][%csl Gg4][%cal Re7e3]} 35. Ng5+ {[%emt 0:00:50]} Kh6 {[%emt 0:00:41][%csl Gg4][%cal Re7e3]} 36. Bd2 {[%emt 0:00:40] [#]} (36. Re1 $15) 36... Be8 {[%emt 0:00:49] Weighted Error Value: White=0.29 (precise) /Black=0.26 (precise)} ({Black should try} 36... Bb5 $1 $17 37. Kg3 Bd3) 1/2-1/2

[Event "Kezmarok Chess Open 2022"]
[Site "Kezmarok"]
[Date "2022.09.30"]
[Round "8.16"]
[White "Mazak, Ryan"]
[Black "Velychko, Sofiya"]
[Result "1-0"]
[ECO "B32"]
[WhiteElo "1590"]
[BlackElo "1371"]
[Annotator "NA COMBH"]
[PlyCount "55"]
[EventDate "2022.09.24"]
[EventType "swiss"]
[EventCountry "SVK"]
[SourceTitle "playchess.com"]
[Source "ChessBase"]
[SourceQuality "1"]
[TimeControl "40/5400+30:1800+30"]

1. e4 {[%emt 0:00:30]} c5 {[%emt 0:00:30]} 2. Nf3 {[%emt 0:00:30]} Nc6 {[%emt 0:00:30]} 3. d4 {[%emt 0:00:37]} cxd4 {[%emt 0:00:30]} 4. c3 {[%emt 0:00:30]} Nf6 {[%emt 0:00:40]} 5. e5 {[%emt 0:00:30]} Nd5 {[%emt 0:00:47]} 6. Bc4 {[%emt 0:01:27]} Nb6 {[%emt 0:01:10]} 7. Bb3 {[%emt 0:00:30]} dxc3 {[%emt 0:03:46]} 8. Nxc3 {[%emt 0:00:34]} e6 {[%emt 0:01:23]} 9. O-O {[%emt 0:03:36]} Be7 {[%emt 0:04:16]} 10. Bc2 {[%emt 0:04:08]} Nb4 {[%emt 0:08:01]} 11. Be4 {[%emt 0:05:23]} O-O {[%emt 0:02:02]} 12. a3 {[%emt 0:03:16]} Nc6 {[%emt 0:00:41]} 13. Bf4 {[%emt 0:02:26]} f6 {[%emt 0:03:53]} 14. exf6 {[%emt 0:05:00]} Bxf6 {[%emt 0:00:48]} 15. Bd6 {[%emt 0:06:10]} Be7 {[%emt 0:02:27]} 16. Nb5 {[%emt 0:02:40]} Bxd6 {[%emt 0:04:41]} 17. Nxd6 {[%emt 0:01:41]} Rb8 {[%emt 0:06:44]} 18. h4 {[%emt 0:04:23]} Ne7 {[%emt 0:02:31]} 19. Bxh7+ {[%emt 0:01:52]} Kxh7 {[%emt 0:08:18]} 20. Ng5+ {[%emt 0:00:30]} Kg6 {[%emt 0:03:09]} 21. Qg4 {[%emt 0:01:32]} Kf6 {[%emt 0:03:14]} 22. Nge4+ {[%emt 0:01:39]} Ke5 {[%emt 0:00:35]} 23. Qxg7+ {[%emt 0:00:58]} Kd5 {[%emt 0:01:35]} 24. Qc3 {[%emt 0:00:38]} Nc4 {[%emt 0:05:27]} 25. Rfd1+ {[%emt 0:00:30]} Kc6 {[%emt 0:00:30]} 26. Qxc4+ {[%emt 0:00:30]} Kb6 {[%emt 0:00:30]} 27. Qc5+ {[%emt 0:00:30]} Ka6 {[%emt 0:00:30]} 28. Qb5# {[%emt 0:00:30]} 1-0

[Event "Kezmarok Chess Open 2022"]
[Site "Kezmarok"]
[Date "2022.09.30"]
[Round "8.17"]
[White "Vestur, Rastislav"]
[Black "Horbalova, Ivana"]
[Result "1-0"]
[ECO "A10"]
[WhiteElo "1789"]
[BlackElo "1286"]
[Annotator "NA RC COMBH"]
[PlyCount "95"]
[EventDate "2022.09.24"]
[EventType "swiss"]
[EventCountry "SVK"]
[SourceTitle "playchess.com"]
[Source "ChessBase"]
[SourceQuality "1"]
[TimeControl "40/5400+30:1800+30"]

1. c4 {[%emt 0:00:27]} f5 {[%emt 0:00:29]} 2. Nf3 {[%emt 0:00:32]} Nf6 {[%emt 0:00:56]} 3. b3 {[%emt 0:01:00]} g6 {[%emt 0:02:19]} 4. Bb2 {[%emt 0:00:09]} Bg7 {[%emt 0:01:13]} 5. e3 {[%emt 0:02:52]} c5 {[%emt 0:01:44]} 6. Be2 {[%emt 0:01:28]} Nc6 {[%emt 0:00:37]} 7. O-O {[%emt 0:00:38]} d6 {[%emt 0:01:27]} 8. d4 {[%emt 0:00:33]} cxd4 {[%emt 0:02:01]} 9. exd4 {[%emt 0:00:06]} d5 {[%emt 0:02:16]} 10. Nc3 {[%emt 0:04:32]} e6 {[%emt 0:00:40]} 11. Re1 {[%emt 0:00:54]} O-O {[%emt 0:02:36]} 12. Ne5 {[%emt 0:07:10]} Ne4 {[%emt 0:02:09]} 13. cxd5 {[%emt 0:01:12]} Nxc3 {[%emt 0:01:21]} 14. Bxc3 {[%emt 0:01:05]} exd5 {[%emt 0:00:26]} 15. f4 {[%emt 0:04:02]} Be6 {[%emt 0:01:23]} 16. Bb5 {[%emt 0:01:06]} Nxe5 {[%emt 0:00:26]} 17. fxe5 {[%emt 0:00:29]} Rc8 {[%emt 0:00:58]} 18. Bb4 {[%emt 0:03:30]} Rf7 {[%emt 0:00:27]} 19. Bd6 {[%emt 0:00:09]} Bf8 {[%emt 0:01:00]} 20. Bxf8 {[%emt 0:00:23]} Qxf8 {[%emt 0:00:24]} 21. Qd2 {[%emt 0:00:59]} f4 {[%emt 0:00:51]} 22. Be2 {[%emt 0:02:16]} g5 {[%emt 0:02:09]} 23. h3 {[%emt 0:02:19]} Qh6 {[%emt 0:01:11]} 24. Rac1 {[%emt 0:05:16]} Rfc7 {[%emt 0:00:35]} 25. Bf3 {[%emt 0:02:44]} Qh4 {[%emt 0:02:37]} 26. Rxc7 {[%emt 0:04:20]} Rxc7 {[%emt 0:00:13]} 27. Rc1 {[%emt 0:02:36]} Rd7 {[%emt 0:01:11]} 28. b4 {[%emt 0:09:18]} Qg3 {[%emt 0:00:27]} 29. Qf2 {[%emt 0:00:43]} Qxf2+ {[%emt 0:00:40]} 30. Kxf2 {[%emt 0:00:02]} Kg7 {[%emt 0:01:09]} 31. g4 {[%emt 0:04:51]} fxg3+ {[%emt 0:00:53]} 32. Kxg3 {[%emt 0:00:05]} Kg6 {[%emt 0:00:52]} 33. Bg4 {[%emt 0:10:57]} Bxg4 {[%emt 0:00:57]} 34. hxg4 {[%emt 0:00:03]} h5 {[%emt 0:00:13]} 35. gxh5+ {[%emt 0:00:16]} Kxh5 {[%emt 0:00:02]} 36. Rf1 {[%emt 0:00:39]} Kg6 {[%emt 0:00:29]} 37. Kg4 {[%emt 0:00:22]} Rh7 {[%emt 0:00:10]} 38. Rf6+ {[%emt 0:00:10]} Kg7 {[%emt 0:00:41]} 39. Kxg5 {[%emt 0:00:36]} Rh2 {[%emt 0:00:17]} 40. Rd6 {[%emt 0:01:58]} Rg2+ {[%emt 0:00:42]} 41. Kf5 {[%emt 0:30:47]} Rf2+ {[%emt 0:30:33]} 42. Ke6 {[%emt 0:00:34]} Rf8 {[%emt 0:02:13]} 43. Rd7+ {[%emt 0:00:54]} Kg6 {[%emt 0:00:34]} 44. Rxb7 {[%emt 0:00:21]} Re8+ {[%emt 0:01:12]} 45. Kxd5 {[%emt 0:00:30]} Kf5 {[%emt 0:00:43]} 46. Rf7+ {[%emt 0:00:09]} Kg4 {[%emt 0:00:11]} 47. Ke4 {[%emt 0:01:17]} Rd8 {[%emt 0:00:23]} 48. e6 {[%emt 0:00:26]} 1-0

[Event "Kezmarok Chess Open 2022"]
[Site "Kezmarok"]
[Date "2022.09.30"]
[Round "8.18"]
[White "Hanina, Marcel"]
[Black "Kolek, Stefan"]
[Result "1-0"]
[ECO "A04"]
[WhiteElo "1411"]
[BlackElo "1524"]
[Annotator "NA RC COMBH"]
[PlyCount "110"]
[EventDate "2022.09.24"]
[EventType "swiss"]
[EventCountry "SVK"]
[SourceTitle "playchess.com"]
[Source "ChessBase"]
[SourceQuality "1"]
[TimeControl "40/5400+30:1800+30"]

1. Nf3 e6 2. g3 d5 3. Bg2 c5 4. O-O Nf6 5. d3 Bd7 6. Nbd2 Bc6 7. Ne5 Qc7 8. Ndf3 Bd6 9. Nxc6 Nxc6 10. Re1 O-O 11. e4 d4 12. Qe2 Nd7 13. b3 Rac8 14. Bb2 Nde5 15. Nd2 b5 16. f4 Nd7 17. e5 Be7 18. Ne4 Nb4 19. c4 dxc3 20. Bxc3 Nd5 21. Bd2 Qb6 22. Nf2 Rc7 23. Bxd5 exd5 24. e6 fxe6 25. Qxe6+ Qxe6 26. Rxe6 Bf6 27. Rae1 Kf7 28. R6e2 c4 29. dxc4 dxc4 30. bxc4 bxc4 31. Ne4 Bd4+ 32. Kg2 c3 33. Bc1 Nc5 34. Nd6+ Kg8 35. Re8 g6 36. Rxf8+ Kxf8 37. Re8+ Kg7 38. Nb5 Rd7 39. Nxd4 Rxd4 40. Rc8 Ne4 41. Kf3 Rd1 42. Ba3 Nd2+ 43. Ke2 Ra1 44. Rxc3 Nb1 45. Rc7+ Kh6 46. Bf8+ Kh5 47. Rxh7+ Kg4 48. Rxa7 Nc3+ 49. Kd3 Rxa2 50. Rxa2 Nxa2 51. Kc2 Kh3 52. g4 Kxh2 53. f5 Kh3 54. f6 g5 55. f7 Kxg4 1-0

[Event "Kezmarok Chess Open 2022"]
[Site "Kezmarok"]
[Date "2022.10.01"]
[Round "9.1"]
[White "Wisniewski, Michal"]
[Black "Dubessay, Bastien"]
[Result "1/2-1/2"]
[ECO "A06"]
[WhiteElo "2152"]
[BlackElo "2259"]
[Annotator "TA"]
[PlyCount "28"]
[EventDate "2022.09.24"]
[EventType "swiss"]
[EventCountry "SVK"]
[SourceTitle "playchess.com"]
[Source "ChessBase"]
[SourceQuality "1"]
[TimeControl "40/5400+30:1800+30"]

{[%evp 11,15,7,0,1,20,11]} 1. Nf3 {[%emt 0:00:03]} d5 {[%emt 0:00:19]} 2. e3 {[%emt 0:00:06]} Nf6 {[%emt 0:00:46]} 3. c4 {[%emt 0:00:06]} e6 {[%emt 0:00:07]} 4. b3 {[%emt 0:00:07]} Be7 {[%emt 0:03:13]} 5. Bb2 {[%emt 0:00:06]} O-O {[%emt 0:00:06]} 6. Nc3 {[%emt 0:00:04]} b6 {[%emt 0:03:25]} 7. cxd5 {[%emt 0:00:28] A13: English Opening: 1...e6.} exd5 {[%emt 0:02:22]} 8. d4 {[%emt 0:00:04] [#] Not much happened in this game.} {Predecessor:} Bf5 $146 9. Bd3 Bxd3 10. Qxd3 Re8 11. O-O Bd6 12. Nb5 Bf8 13. Ne5 a6 14. Nc3 Nbd7 {1-0 (91) Sjugirov,S (2696)-Dubov,D (2702) Chess.com INT 2022} 1/2-1/2